[Event "Early-Titled-Tuesday-Blitz-April-16-2024"]
[Site "Chess.com"]
[Date "2024.04.16"]
[Round "9"]
[White "Smiechu"]
[Black "Manukyan_Artak"]
[Result "1-0"]
[WhiteElo "2385"]
[BlackElo "2497"]
[TimeControl "180+1"]
[EndTime "9:48:41 PDT"]
[Termination "Smiechu won by resignation"]

1. e4 {[%clk 0:03:00.9]} 1... c6 {[%clk 0:02:59]} 2. d4 {[%clk 0:02:57.1]} 2...
d5 {[%clk 0:02:59.9]} 3. f3 {[%clk 0:02:57]} 3... e6 {[%clk 0:02:51.2]} 4. Nc3
{[%clk 0:02:56.2]} 4... b5 {[%clk 0:02:50.9]} 5. exd5 {[%clk 0:02:54]} 5... exd5
{[%clk 0:02:50.4]} 6. Bd3 {[%clk 0:02:53.9]} 6... Bd6 {[%clk 0:02:50]} 7. Nge2
{[%clk 0:02:53.6]} 7... Qh4+ {[%clk 0:02:47.2]} 8. g3 {[%clk 0:02:53.2]} 8...
Qh5 {[%clk 0:02:45.9]} 9. Nf4 {[%clk 0:02:51.6]} 9... Bxf4 {[%clk 0:02:45.1]}
10. Bxf4 {[%clk 0:02:52.5]} 10... Nf6 {[%clk 0:02:44.5]} 11. Qe2+ {[%clk
0:02:51.5]} 11... Be6 {[%clk 0:02:44.2]} 12. O-O-O {[%clk 0:02:48.2]} 12... O-O
{[%clk 0:02:44.2]} 13. g4 {[%clk 0:02:45.9]} 13... Qh3 {[%clk 0:02:41.2]} 14.
Qf2 {[%clk 0:02:41.5]} 14... Nbd7 {[%clk 0:02:29.3]} 15. Bf1 {[%clk 0:02:31]}
15... Nxg4 {[%clk 0:02:17.4]} 16. fxg4 {[%clk 0:02:30.4]} 16... Qxg4 {[%clk
0:02:14.7]} 17. Rg1 {[%clk 0:02:30]} 17... Qf5 {[%clk 0:02:10.7]} 18. Bd3 {[%clk
0:02:29]} 18... Qf6 {[%clk 0:02:04.2]} 19. Qg3 {[%clk 0:02:21]} 19... g6 {[%clk
0:02:01.5]} 20. h4 {[%clk 0:02:09.6]} 20... h5 {[%clk 0:01:51.2]} 21. Rdf1
{[%clk 0:02:03]} 21... Bg4 {[%clk 0:01:45.4]} 22. Bh6 {[%clk 0:02:02]} 22...
Qxd4 {[%clk 0:01:38.6]} 23. Bxf8 {[%clk 0:02:00.7]} 23... Rxf8 {[%clk
0:01:39.5]} 24. Qf4 {[%clk 0:01:58.9]} 24... Qxf4+ {[%clk 0:01:33.5]} 25. Rxf4
{[%clk 0:01:57.8]} 25... Re8 {[%clk 0:01:34.4]} 26. Rff1 {[%clk 0:01:49.3]}
26... f5 {[%clk 0:01:29.1]} 27. Re1 {[%clk 0:01:48.4]} 27... Ne5 {[%clk
0:01:22.3]} 28. b3 {[%clk 0:01:40]} 28... Kf7 {[%clk 0:01:19.4]} 29. Kb2 {[%clk
0:01:32.2]} 29... Kf6 {[%clk 0:01:15.6]} 30. Nd1 {[%clk 0:01:15.3]} 30... a5
{[%clk 0:01:06.7]} 31. Nf2 {[%clk 0:01:13.6]} 31... a4 {[%clk 0:01:01.7]} 32.
bxa4 {[%clk 0:01:02.1]} 32... bxa4 {[%clk 0:01:02.6]} 33. Ka3 {[%clk 0:01:01.7]}
33... c5 {[%clk 0:00:58.3]} 34. Bb5 {[%clk 0:01:00.8]} 34... Ra8 {[%clk
0:00:56.1]} 35. Nd3 {[%clk 0:00:59.6]} 35... Nf3 {[%clk 0:00:50]} 36. Nxc5
{[%clk 0:00:58]} 36... Nxg1 {[%clk 0:00:39.4]} 37. Rxg1 {[%clk 0:00:57.7]} 37...
g5 {[%clk 0:00:33.9]} 38. Nd7+ {[%clk 0:00:53.3]} 38... Ke7 {[%clk 0:00:32.2]}
39. hxg5 {[%clk 0:00:46.3]} 39... h4 {[%clk 0:00:32.4]} 40. g6 {[%clk
0:00:46.1]} 40... h3 {[%clk 0:00:32.7]} 41. Re1+ {[%clk 0:00:41.5]} 41... Kd6
{[%clk 0:00:31.2]} 42. g7 {[%clk 0:00:39.1]} 42... Rg8 {[%clk 0:00:28.4]} 43.
Nf6 {[%clk 0:00:39.3]} 43... Rxg7 {[%clk 0:00:28.1]} 44. Ne8+ {[%clk 0:00:39.5]}
44... Kc5 {[%clk 0:00:27.8]} 45. Nxg7 {[%clk 0:00:40]} 45... h2 {[%clk
0:00:28.5]} 46. Rh1 {[%clk 0:00:37.1]} 46... Kxb5 {[%clk 0:00:27]} 47. Rxh2
{[%clk 0:00:37.1]} 47... Kc5 {[%clk 0:00:27.5]} 48. Rf2 {[%clk 0:00:36.8]} 1-0

[Event "Early-Titled-Tuesday-Blitz-April-16-2024"]
[Site "Chess.com"]
[Date "2024.04.16"]
[Round "9"]
[White "Daaksboy"]
[Black "Ginger_GM"]
[Result "1-0"]
[WhiteElo "2398"]
[BlackElo "2642"]
[TimeControl "180+1"]
[EndTime "9:48:42 PDT"]
[Termination "Daaksboy won by resignation"]

1. d4 {[%clk 0:03:00.9]} 1... e6 {[%clk 0:02:58.5]} 2. c4 {[%clk 0:03:01]} 2...
f5 {[%clk 0:02:35.8]} 3. Nc3 {[%clk 0:02:59.8]} 3... Nf6 {[%clk 0:02:31.9]} 4.
g3 {[%clk 0:02:59.4]} 4... Be7 {[%clk 0:02:10.8]} 5. Bg2 {[%clk 0:02:59.6]} 5...
O-O {[%clk 0:02:09.2]} 6. Nf3 {[%clk 0:02:59.4]} 6... d6 {[%clk 0:02:08.7]} 7.
O-O {[%clk 0:02:55.6]} 7... a5 {[%clk 0:02:07.7]} 8. Qc2 {[%clk 0:02:50.3]} 8...
Nc6 {[%clk 0:02:07]} 9. Rd1 {[%clk 0:02:45.7]} 9... Qe8 {[%clk 0:02:06.1]} 10.
d5 {[%clk 0:02:36.5]} 10... Nb4 {[%clk 0:02:05.6]} 11. Qb3 {[%clk 0:02:35.6]}
11... e5 {[%clk 0:02:00]} 12. c5 {[%clk 0:02:28]} 12... Qh5 {[%clk 0:01:56.4]}
13. Nxe5 {[%clk 0:02:16.3]} 13... Kh8 {[%clk 0:01:36.7]} 14. cxd6 {[%clk
0:01:56.9]} 14... Bxd6 {[%clk 0:01:33.6]} 15. Nc4 {[%clk 0:01:28.6]} 15... f4
{[%clk 0:01:24.3]} 16. Nxd6 {[%clk 0:01:23.2]} 16... fxg3 {[%clk 0:01:22.1]} 17.
fxg3 {[%clk 0:01:10]} 17... cxd6 {[%clk 0:01:15.7]} 18. Bf4 {[%clk 0:01:04.2]}
18... Bh3 {[%clk 0:01:13.2]} 19. Bf3 {[%clk 0:00:52.8]} 19... Ng4 {[%clk
0:01:06.2]} 20. Ne4 {[%clk 0:00:35.6]} 20... Qg6 {[%clk 0:00:22.3]} 21. Ng5
{[%clk 0:00:23.5]} 21... Rxf4 {[%clk 0:00:14.8]} 22. gxf4 {[%clk 0:00:23.8]}
22... Nf6 {[%clk 0:00:13.9]} 23. a3 {[%clk 0:00:16]} 23... Na6 {[%clk
0:00:13.4]} 24. Qxb7 {[%clk 0:00:13.8]} 24... Rf8 {[%clk 0:00:12.7]} 25. Kh1
{[%clk 0:00:12.7]} 25... h6 {[%clk 0:00:09.1]} 26. Nxh3 {[%clk 0:00:12.4]} 26...
Qf5 {[%clk 0:00:09]} 27. Rg1 {[%clk 0:00:11.7]} 27... Rg8 {[%clk 0:00:08.8]} 28.
Nf2 {[%clk 0:00:11.1]} 28... Qxf4 {[%clk 0:00:07.8]} 29. Qxa6 {[%clk 0:00:11.4]}
29... Ng4 {[%clk 0:00:07.4]} 30. Rxg4 {[%clk 0:00:10.8]} 1-0

[Event "Early-Titled-Tuesday-Blitz-April-16-2024"]
[Site "Chess.com"]
[Date "2024.04.16"]
[Round "9"]
[White "TenisMaster"]
[Black "KnightDuta"]
[Result "1-0"]
[WhiteElo "2929"]
[BlackElo "2752"]
[TimeControl "180+1"]
[EndTime "9:48:46 PDT"]
[Termination "TenisMaster won by resignation"]

1. e4 {[%clk 0:03:00.9]} 1... c5 {[%clk 0:02:59]} 2. Nf3 {[%clk 0:03:00.4]} 2...
Nc6 {[%clk 0:02:59.7]} 3. Bb5 {[%clk 0:02:59.8]} 3... g6 {[%clk 0:02:59.8]} 4.
O-O {[%clk 0:02:59.5]} 4... Bg7 {[%clk 0:02:59.9]} 5. c3 {[%clk 0:02:58.9]} 5...
Nf6 {[%clk 0:02:59.7]} 6. Re1 {[%clk 0:02:58.5]} 6... O-O {[%clk 0:03:00.1]} 7.
d4 {[%clk 0:02:58.3]} 7... cxd4 {[%clk 0:03:00.5]} 8. cxd4 {[%clk 0:02:58.3]}
8... d6 {[%clk 0:03:01.3]} 9. h3 {[%clk 0:02:56.8]} 9... Bd7 {[%clk 0:03:01.3]}
10. Nc3 {[%clk 0:02:56.1]} 10... a6 {[%clk 0:02:52.1]} 11. Bf1 {[%clk
0:02:53.7]} 11... b5 {[%clk 0:02:52.2]} 12. e5 {[%clk 0:02:50]} 12... Ne8 {[%clk
0:02:06.3]} 13. Bg5 {[%clk 0:02:44.6]} 13... h6 {[%clk 0:02:03.5]} 14. Bf4
{[%clk 0:02:44.1]} 14... b4 {[%clk 0:01:29.9]} 15. Ne4 {[%clk 0:02:38.9]} 15...
d5 {[%clk 0:01:28.7]} 16. Nc5 {[%clk 0:02:37.1]} 16... Nc7 {[%clk 0:01:21.5]}
17. Rc1 {[%clk 0:02:25.9]} 17... Rc8 {[%clk 0:00:54.1]} 18. Qd2 {[%clk
0:02:12.1]} 18... g5 {[%clk 0:00:47.1]} 19. Bg3 {[%clk 0:02:05.9]} 19... a5
{[%clk 0:00:30.2]} 20. Bd3 {[%clk 0:01:50.4]} 20... Ne6 {[%clk 0:00:30.1]} 21.
Nxe6 {[%clk 0:01:43.9]} 21... Bxe6 {[%clk 0:00:31]} 22. Bb1 {[%clk 0:01:44]}
22... Qb6 {[%clk 0:00:30.7]} 23. Qd3 {[%clk 0:01:43.9]} 23... Rfd8 {[%clk
0:00:31.1]} 24. Bc2 {[%clk 0:01:18.4]} 24... Na7 {[%clk 0:00:26]} 25. h4 {[%clk
0:01:10.1]} 25... g4 {[%clk 0:00:23.7]} 26. Qh7+ {[%clk 0:01:09.6]} 26... Kf8
{[%clk 0:00:23.8]} 27. Bf4 {[%clk 0:01:06]} 27... Bd7 {[%clk 0:00:17.8]} 28. e6
{[%clk 0:01:04.7]} 28... Bxe6 {[%clk 0:00:11.3]} 29. Bxh6 {[%clk 0:01:04.6]}
29... Ke8 {[%clk 0:00:11.8]} 30. Ba4+ {[%clk 0:01:02.2]} 30... Nb5 {[%clk
0:00:11.3]} 31. Ng5 {[%clk 0:00:58]} 31... Bxh6 {[%clk 0:00:10.4]} 32. Qxh6
{[%clk 0:00:58]} 32... Rxc1 {[%clk 0:00:06.7]} 33. Rxc1 {[%clk 0:00:56.7]} 33...
Kd7 {[%clk 0:00:06.6]} 34. Nxf7 {[%clk 0:00:53.9]} 34... Rb8 {[%clk 0:00:05.2]}
35. Ne5+ {[%clk 0:00:52.9]} 35... Kd6 {[%clk 0:00:03.6]} 36. Rc6+ {[%clk
0:00:52.2]} 36... Qxc6 {[%clk 0:00:04.2]} 37. Nxc6 {[%clk 0:00:52.8]} 37... Rb6
{[%clk 0:00:04.5]} 38. Bxb5 {[%clk 0:00:51.4]} 38... Rxb5 {[%clk 0:00:05.4]} 39.
Ne5 {[%clk 0:00:51.3]} 39... b3 {[%clk 0:00:04.1]} 40. a3 {[%clk 0:00:50.5]}
40... Rb8 {[%clk 0:00:04.2]} 41. Qf4 {[%clk 0:00:49.8]} 41... Rc8 {[%clk
0:00:04.1]} 42. Nd3+ {[%clk 0:00:48.3]} 42... Kc6 {[%clk 0:00:04.4]} 43. Nc5
{[%clk 0:00:48.4]} 43... Bd7 {[%clk 0:00:03]} 44. h5 {[%clk 0:00:47]} 44... Rf8
{[%clk 0:00:01.9]} 45. Qxf8 {[%clk 0:00:46.6]} 1-0

[Event "Early-Titled-Tuesday-Blitz-April-16-2024"]
[Site "Chess.com"]
[Date "2024.04.16"]
[Round "9"]
[White "David_George21"]
[Black "ajeale2"]
[Result "0-1"]
[WhiteElo "2320"]
[BlackElo "2428"]
[TimeControl "180+1"]
[EndTime "9:48:49 PDT"]
[Termination "ajeale2 won by checkmate"]

1. e4 {[%clk 0:02:54.9]} 1... g6 {[%clk 0:03:00.2]} 2. d4 {[%clk 0:02:54]} 2...
Bg7 {[%clk 0:03:00.9]} 3. Nc3 {[%clk 0:02:54.5]} 3... d6 {[%clk 0:03:01.6]} 4.
f4 {[%clk 0:02:53.7]} 4... Nd7 {[%clk 0:03:00.7]} 5. Nf3 {[%clk 0:02:53.7]} 5...
c5 {[%clk 0:03:01.4]} 6. d5 {[%clk 0:02:43.8]} 6... a6 {[%clk 0:02:46.8]} 7. a4
{[%clk 0:02:42.7]} 7... Nh6 {[%clk 0:02:34.7]} 8. Bd3 {[%clk 0:02:35.1]} 8...
O-O {[%clk 0:02:31.1]} 9. O-O {[%clk 0:02:33.5]} 9... e6 {[%clk 0:02:20.4]} 10.
a5 {[%clk 0:02:17.7]} 10... Qc7 {[%clk 0:02:03.4]} 11. Bc4 {[%clk 0:01:35.4]}
11... b5 {[%clk 0:01:49.6]} 12. dxe6 {[%clk 0:01:22.6]} 12... bxc4 {[%clk
0:01:48.8]} 13. Nd5 {[%clk 0:01:20.1]} 13... Qb7 {[%clk 0:01:31.7]} 14. exd7
{[%clk 0:01:19.4]} 14... Bxd7 {[%clk 0:01:31.6]} 15. f5 {[%clk 0:01:03.1]} 15...
Ng4 {[%clk 0:01:15.6]} 16. h3 {[%clk 0:01:01.5]} 16... Nf6 {[%clk 0:01:14]} 17.
Nxf6+ {[%clk 0:00:47.5]} 17... Bxf6 {[%clk 0:01:14]} 18. Qxd6 {[%clk 0:00:48.2]}
18... Qc6 {[%clk 0:01:07.7]} 19. Qxc6 {[%clk 0:00:30.3]} 19... Bxc6 {[%clk
0:01:07.4]} 20. e5 {[%clk 0:00:26.2]} 20... Bxf3 {[%clk 0:01:06]} 21. exf6
{[%clk 0:00:23.9]} 21... Be4 {[%clk 0:00:55.2]} 22. fxg6 {[%clk 0:00:22.9]}
22... fxg6 {[%clk 0:00:36.7]} 23. Rf2 {[%clk 0:00:19.7]} 23... Kf7 {[%clk
0:00:35]} 24. Be3 {[%clk 0:00:19.1]} 24... Rac8 {[%clk 0:00:30.8]} 25. Rd1
{[%clk 0:00:19.2]} 25... Bf5 {[%clk 0:00:24]} 26. g4 {[%clk 0:00:16.1]} 26...
Be6 {[%clk 0:00:23.3]} 27. Rd6 {[%clk 0:00:12.2]} 27... Rfd8 {[%clk 0:00:17.3]}
28. Rxa6 {[%clk 0:00:12.1]} 28... Rd1+ {[%clk 0:00:17.2]} 29. Kh2 {[%clk
0:00:12.4]} 29... Rc7 {[%clk 0:00:16.6]} 30. Bf4 {[%clk 0:00:11.1]} 30... Rcd7
{[%clk 0:00:16.3]} 31. Rb6 {[%clk 0:00:09.3]} 31... h5 {[%clk 0:00:15.3]} 32.
gxh5 {[%clk 0:00:09.2]} 32... gxh5 {[%clk 0:00:15.4]} 33. a6 {[%clk 0:00:09.6]}
33... h4 {[%clk 0:00:13.9]} 34. Rc6 {[%clk 0:00:06.1]} 34... Bd5 {[%clk
0:00:13.2]} 35. Rd6 {[%clk 0:00:06.4]} 35... Rh1# {[%clk 0:00:13.2]} 0-1

[Event "Early-Titled-Tuesday-Blitz-April-16-2024"]
[Site "Chess.com"]
[Date "2024.04.16"]
[Round "9"]
[White "NasirAkylbekov"]
[Black "ansko1999"]
[Result "1-0"]
[WhiteElo "2516"]
[BlackElo "2619"]
[TimeControl "180+1"]
[EndTime "9:48:53 PDT"]
[Termination "NasirAkylbekov won by checkmate"]

1. e4 {[%clk 0:02:59.9]} 1... c5 {[%clk 0:02:59.4]} 2. Nf3 {[%clk 0:03:00.3]}
2... Nf6 {[%clk 0:02:59.6]} 3. Nc3 {[%clk 0:03:00.6]} 3... d5 {[%clk 0:02:58.8]}
4. exd5 {[%clk 0:02:59.9]} 4... Nxd5 {[%clk 0:02:59]} 5. Bb5+ {[%clk 0:03:00.4]}
5... Bd7 {[%clk 0:02:59]} 6. Bxd7+ {[%clk 0:02:59.8]} 6... Qxd7 {[%clk
0:02:58.6]} 7. O-O {[%clk 0:03:00.1]} 7... Nxc3 {[%clk 0:02:48.8]} 8. bxc3
{[%clk 0:03:00.5]} 8... g6 {[%clk 0:02:48.5]} 9. d4 {[%clk 0:03:00.8]} 9... Bg7
{[%clk 0:02:48.1]} 10. Rb1 {[%clk 0:03:00.7]} 10... Nc6 {[%clk 0:02:45.9]} 11.
Be3 {[%clk 0:03:00.4]} 11... O-O {[%clk 0:02:43.6]} 12. dxc5 {[%clk 0:03:00.8]}
12... Qc7 {[%clk 0:02:39.5]} 13. Qd3 {[%clk 0:02:56.5]} 13... Rfd8 {[%clk
0:02:29.1]} 14. Qb5 {[%clk 0:02:52.5]} 14... Rd7 {[%clk 0:02:25.8]} 15. Nd4
{[%clk 0:02:40.3]} 15... Rc8 {[%clk 0:02:15.6]} 16. Qa4 {[%clk 0:02:34]} 16...
a6 {[%clk 0:02:06.6]} 17. Nxc6 {[%clk 0:02:20.2]} 17... Qxc6 {[%clk 0:02:04.7]}
18. Qxc6 {[%clk 0:02:20.3]} 18... Rxc6 {[%clk 0:02:05.1]} 19. Rfd1 {[%clk
0:02:20.9]} 19... Rcc7 {[%clk 0:01:53]} 20. Rxd7 {[%clk 0:02:12.7]} 20... Rxd7
{[%clk 0:01:53.9]} 21. c6 {[%clk 0:02:13.4]} 21... bxc6 {[%clk 0:01:50.7]} 22.
Rb8+ {[%clk 0:02:09.4]} 22... Bf8 {[%clk 0:01:51.1]} 23. g4 {[%clk 0:02:08.6]}
23... Kg7 {[%clk 0:01:50.3]} 24. Rb6 {[%clk 0:02:05.7]} 24... a5 {[%clk
0:01:26.1]} 25. Rxc6 {[%clk 0:02:05.4]} 25... Rd1+ {[%clk 0:01:25.1]} 26. Kg2
{[%clk 0:02:05.4]} 26... Ra1 {[%clk 0:01:25.6]} 27. g5 {[%clk 0:01:44.5]} 27...
h6 {[%clk 0:01:13.9]} 28. h4 {[%clk 0:01:29.1]} 28... Rxa2 {[%clk 0:01:07.9]}
29. Rc8 {[%clk 0:01:27.9]} 29... hxg5 {[%clk 0:01:05.5]} 30. hxg5 {[%clk
0:01:28.8]} 30... Rxc2 {[%clk 0:00:55.8]} 31. Ra8 {[%clk 0:01:29.2]} 31... Ra2
{[%clk 0:00:53.8]} 32. Bd4+ {[%clk 0:01:21.2]} 32... f6 {[%clk 0:00:53.6]} 33.
gxf6+ {[%clk 0:01:20.3]} 33... exf6 {[%clk 0:00:54.2]} 34. Ra7+ {[%clk
0:01:19.4]} 34... Kh6 {[%clk 0:00:45.5]} 35. Bxf6 {[%clk 0:01:15.3]} 35... Bc5
{[%clk 0:00:43.7]} 36. Bg7+ {[%clk 0:01:15.4]} 36... Kh7 {[%clk 0:00:40.4]} 37.
Rc7 {[%clk 0:01:07.7]} 37... Bxf2 {[%clk 0:00:35.9]} 38. Bd4+ {[%clk 0:01:06.5]}
38... Kh6 {[%clk 0:00:31.9]} 39. Bxf2 {[%clk 0:01:06.6]} 39... a4 {[%clk
0:00:30.6]} 40. Kf3 {[%clk 0:01:05.7]} 40... Kg5 {[%clk 0:00:31.1]} 41. Be3+
{[%clk 0:01:02.8]} 41... Kf5 {[%clk 0:00:31.5]} 42. Rc5+ {[%clk 0:01:03.4]}
42... Ke6 {[%clk 0:00:31.4]} 43. Ra5 {[%clk 0:01:02.6]} 43... a3 {[%clk
0:00:28.5]} 44. Bd4 {[%clk 0:01:02.5]} 44... Ra1 {[%clk 0:00:27.7]} 45. Ke4
{[%clk 0:00:55.9]} 45... a2 {[%clk 0:00:20.2]} 46. Ra6+ {[%clk 0:00:55.1]} 46...
Kd7 {[%clk 0:00:19.3]} 47. Kd5 {[%clk 0:00:55.8]} 47... g5 {[%clk 0:00:15.7]}
48. Ra7+ {[%clk 0:00:53.8]} 48... Ke8 {[%clk 0:00:16.2]} 49. c4 {[%clk
0:00:54.2]} 49... Rd1 {[%clk 0:00:12.8]} 50. Rxa2 {[%clk 0:00:53.8]} 50... g4
{[%clk 0:00:13.7]} 51. Rg2 {[%clk 0:00:53.5]} 51... Rg1 {[%clk 0:00:10.8]} 52.
Rxg1 {[%clk 0:00:53.5]} 52... Kd7 {[%clk 0:00:10.7]} 53. Rxg4 {[%clk 0:00:53.2]}
53... Kc8 {[%clk 0:00:11.5]} 54. Rg7 {[%clk 0:00:53.1]} 54... Kb8 {[%clk
0:00:11.9]} 55. Kc6 {[%clk 0:00:53.5]} 55... Ka8 {[%clk 0:00:12.8]} 56. Rg8#
{[%clk 0:00:54.1]} 1-0

[Event "Early-Titled-Tuesday-Blitz-April-16-2024"]
[Site "Chess.com"]
[Date "2024.04.16"]
[Round "9"]
[White "Shuvalov"]
[Black "GrotBchess"]
[Result "1/2-1/2"]
[WhiteElo "2612"]
[BlackElo "2452"]
[TimeControl "180+1"]
[EndTime "9:48:53 PDT"]
[Termination "Game drawn by repetition"]

1. d4 {[%clk 0:03:00.9]} 1... Nf6 {[%clk 0:02:58.7]} 2. c4 {[%clk 0:03:00.9]}
2... e6 {[%clk 0:02:58.6]} 3. Nf3 {[%clk 0:03:00.5]} 3... d5 {[%clk 0:02:58.4]}
4. Nc3 {[%clk 0:02:59.2]} 4... Bb4 {[%clk 0:02:54.4]} 5. cxd5 {[%clk 0:02:57.7]}
5... exd5 {[%clk 0:02:53.6]} 6. Bg5 {[%clk 0:02:58.3]} 6... O-O {[%clk
0:02:51.7]} 7. e3 {[%clk 0:02:57.8]} 7... c6 {[%clk 0:02:50.8]} 8. Bd3 {[%clk
0:02:57.1]} 8... Be7 {[%clk 0:02:48.6]} 9. O-O {[%clk 0:02:54]} 9... h6 {[%clk
0:02:48.8]} 10. Bh4 {[%clk 0:02:52.9]} 10... Ne8 {[%clk 0:02:47.6]} 11. Bxe7
{[%clk 0:02:45.8]} 11... Qxe7 {[%clk 0:02:48.5]} 12. Qc2 {[%clk 0:02:44]} 12...
Nd6 {[%clk 0:02:48.5]} 13. h3 {[%clk 0:02:36.2]} 13... Nd7 {[%clk 0:02:47.1]}
14. Rab1 {[%clk 0:02:33.1]} 14... a5 {[%clk 0:02:42.9]} 15. a3 {[%clk 0:02:25]}
15... Nf6 {[%clk 0:02:41.8]} 16. Ne5 {[%clk 0:02:23.3]} 16... Nd7 {[%clk
0:02:39.9]} 17. Nf3 {[%clk 0:02:22]} 17... Nf6 {[%clk 0:02:39.1]} 18. Nd2 {[%clk
0:02:21.4]} 18... Bd7 {[%clk 0:02:34.1]} 19. Na4 {[%clk 0:02:18.5]} 19... Qd8
{[%clk 0:02:20.5]} 20. Nc5 {[%clk 0:02:17.1]} 20... b6 {[%clk 0:02:12.6]} 21.
Nxd7 {[%clk 0:02:16.1]} 21... Qxd7 {[%clk 0:02:12.4]} 22. Rfc1 {[%clk
0:02:16.3]} 22... Rfc8 {[%clk 0:02:12]} 23. Nf3 {[%clk 0:02:12.4]} 23... c5
{[%clk 0:02:05.5]} 24. dxc5 {[%clk 0:02:07.1]} 24... Rxc5 {[%clk 0:02:02.3]} 25.
Qd1 {[%clk 0:02:05.9]} 25... Rac8 {[%clk 0:02:00.4]} 26. Nd4 {[%clk 0:02:03.9]}
26... Nde4 {[%clk 0:01:48.8]} 27. Qe1 {[%clk 0:01:55.3]} 27... Qc7 {[%clk
0:01:42.8]} 28. Rxc5 {[%clk 0:01:50.7]} 28... Qxc5 {[%clk 0:01:43.7]} 29. Nb3
{[%clk 0:01:38]} 29... Qd6 {[%clk 0:01:39.6]} 30. Rc1 {[%clk 0:01:36.6]} 30...
Rc7 {[%clk 0:01:33.2]} 31. Nd4 {[%clk 0:01:34.2]} 31... Rc5 {[%clk 0:01:33]} 32.
Nb3 {[%clk 0:01:28.3]} 32... Rc7 {[%clk 0:01:32.3]} 33. Qd1 {[%clk 0:01:19.2]}
33... Nc5 {[%clk 0:01:25.1]} 34. Nxc5 {[%clk 0:01:10.2]} 34... Rxc5 {[%clk
0:01:24.5]} 35. Rxc5 {[%clk 0:01:03.8]} 35... Qxc5 {[%clk 0:01:24.3]} 36. Qc2
{[%clk 0:01:00.9]} 36... Qxc2 {[%clk 0:01:21.2]} 37. Bxc2 {[%clk 0:01:01.8]}
37... Kf8 {[%clk 0:01:21.2]} 38. Kf1 {[%clk 0:01:01.7]} 38... Ke7 {[%clk
0:01:20.3]} 39. Ke2 {[%clk 0:01:02.1]} 39... Kd6 {[%clk 0:01:20.3]} 40. Kd3
{[%clk 0:01:00]} 40... Nd7 {[%clk 0:01:19.5]} 41. Kd4 {[%clk 0:00:58.5]} 41...
Nc5 {[%clk 0:01:18.1]} 42. f4 {[%clk 0:00:50.5]} 42... Ne6+ {[%clk 0:01:14.9]}
43. Kc3 {[%clk 0:00:50.2]} 43... Kc5 {[%clk 0:01:11.2]} 44. b4+ {[%clk
0:00:50.1]} 44... axb4+ {[%clk 0:01:10.7]} 45. axb4+ {[%clk 0:00:51]} 45... Kd6
{[%clk 0:01:11]} 46. g4 {[%clk 0:00:49]} 46... f6 {[%clk 0:01:08.7]} 47. Bf5
{[%clk 0:00:42.2]} 47... d4+ {[%clk 0:01:04.8]} 48. Kd3 {[%clk 0:00:40.3]} 48...
dxe3 {[%clk 0:01:04.7]} 49. Kxe3 {[%clk 0:00:41.2]} 49... Nc7 {[%clk 0:01:02.3]}
50. Kd4 {[%clk 0:00:39.4]} 50... Nd5 {[%clk 0:01:00.9]} 51. Kc4 {[%clk
0:00:36.2]} 51... Nxf4 {[%clk 0:01:00.4]} 52. Kb5 {[%clk 0:00:36.6]} 52... Kc7
{[%clk 0:00:59.3]} 53. h4 {[%clk 0:00:36.6]} 53... Ng2 {[%clk 0:00:54.9]} 54. h5
{[%clk 0:00:36.6]} 54... Ne3 {[%clk 0:00:52.9]} 55. Be6 {[%clk 0:00:34.9]} 55...
Ng2 {[%clk 0:00:45.9]} 56. Bf5 {[%clk 0:00:33.6]} 56... Nf4 {[%clk 0:00:45.2]}
57. Kc4 {[%clk 0:00:32]} 57... Kd6 {[%clk 0:00:44.5]} 58. Kb5 {[%clk 0:00:32.2]}
58... Kc7 {[%clk 0:00:44.2]} 59. Kc4 {[%clk 0:00:32.6]} 59... Kd6 {[%clk
0:00:44]} 60. Kb5 {[%clk 0:00:33]} 60... Kc7 {[%clk 0:00:43.7]} 1/2-1/2

[Event "Early-Titled-Tuesday-Blitz-April-16-2024"]
[Site "Chess.com"]
[Date "2024.04.16"]
[Round "9"]
[White "NowInChess"]
[Black "michaelskie11"]
[Result "0-1"]
[WhiteElo "2240"]
[BlackElo "2391"]
[TimeControl "180+1"]
[EndTime "9:48:53 PDT"]
[Termination "michaelskie11 won on time"]

1. e4 {[%clk 0:03:00.9]} 1... e6 {[%clk 0:02:59.6]} 2. d3 {[%clk 0:03:01]} 2...
d5 {[%clk 0:03:00.1]} 3. Nd2 {[%clk 0:03:01.6]} 3... Nf6 {[%clk 0:02:59.9]} 4.
Ngf3 {[%clk 0:03:01.9]} 4... c5 {[%clk 0:03:00.3]} 5. g3 {[%clk 0:03:00.8]} 5...
Nc6 {[%clk 0:03:00.5]} 6. Bg2 {[%clk 0:03:00.8]} 6... Be7 {[%clk 0:03:00.9]} 7.
O-O {[%clk 0:03:00.5]} 7... O-O {[%clk 0:03:01.2]} 8. e5 {[%clk 0:03:00.6]} 8...
Nd7 {[%clk 0:03:00.8]} 9. Re1 {[%clk 0:03:01.2]} 9... Qc7 {[%clk 0:03:00.9]} 10.
Qe2 {[%clk 0:03:01.4]} 10... b5 {[%clk 0:02:59.6]} 11. h4 {[%clk 0:03:00.5]}
11... Bb7 {[%clk 0:02:56.2]} 12. Nf1 {[%clk 0:02:58.4]} 12... d4 {[%clk
0:02:54.3]} 13. N1h2 {[%clk 0:02:41.2]} 13... Rae8 {[%clk 0:02:15.5]} 14. Bg5
{[%clk 0:02:36.4]} 14... f6 {[%clk 0:02:09.3]} 15. exf6 {[%clk 0:02:27.2]} 15...
Bxf6 {[%clk 0:02:08.9]} 16. Ng4 {[%clk 0:02:15.5]} 16... e5 {[%clk 0:02:01.7]}
17. Nxf6+ {[%clk 0:02:04.8]} 17... Nxf6 {[%clk 0:02:00.4]} 18. Nd2 {[%clk
0:01:51.7]} 18... Nb4 {[%clk 0:01:53.4]} 19. Bxb7 {[%clk 0:01:43.6]} 19... Qxb7
{[%clk 0:01:53.1]} 20. Bxf6 {[%clk 0:01:43.2]} 20... gxf6 {[%clk 0:01:33.6]} 21.
Ne4 {[%clk 0:01:40.2]} 21... Qd5 {[%clk 0:01:27]} 22. a3 {[%clk 0:01:30.3]}
22... Nc6 {[%clk 0:01:25.1]} 23. Qh5 {[%clk 0:01:23.5]} 23... f5 {[%clk
0:01:22.2]} 24. Nf6+ {[%clk 0:00:30.1]} 24... Rxf6 {[%clk 0:01:14.9]} 25. Qxe8+
{[%clk 0:00:30.2]} 25... Rf8 {[%clk 0:01:14.6]} 26. Qh5 {[%clk 0:00:29.7]} 26...
c4 {[%clk 0:01:08.7]} 27. Re2 {[%clk 0:00:26.3]} 27... Kg7 {[%clk 0:00:52.7]}
28. Qg5+ {[%clk 0:00:22.2]} 28... Kh8 {[%clk 0:00:50.6]} 29. h5 {[%clk
0:00:22.4]} 29... Qf7 {[%clk 0:00:44.4]} 30. Rae1 {[%clk 0:00:18.8]} 30... Rg8
{[%clk 0:00:43.8]} 31. Qh6 {[%clk 0:00:16.6]} 31... Qc7 {[%clk 0:00:31.5]} 32.
Qf6+ {[%clk 0:00:12.3]} 32... Qg7 {[%clk 0:00:28.1]} 33. Qxc6 {[%clk 0:00:11]}
33... f4 {[%clk 0:00:28.2]} 34. Rxe5 {[%clk 0:00:07]} 34... fxg3 {[%clk
0:00:27.8]} 35. f3 {[%clk 0:00:07.1]} 35... g2 {[%clk 0:00:25.2]} 36. h6 {[%clk
0:00:07.1]} 36... Qg3 {[%clk 0:00:24.5]} 37. Qg6 {[%clk 0:00:06.8]} 37... hxg6
{[%clk 0:00:22.6]} 0-1